bitfinex/quotes_SOLUSD_20240922
["timestamp","ask_amount","ask_price","bid_price","bid_amount"]
[1726980284462,6.7015,149.22,149.18,25.11733223]
[1726980284668,6.7015,149.22,149.18,23.776884]
[1726980285264,6.7015,149.22,149.18,25.1173321]
[1726980285444,6.702,149.21,149.18,23.776884]
[1726980288170,6.702,149.21,149.18,25.11733189]
[1726980288372,6.702,149.21,149.18,23.776884]
[1726980296759,6.7016,149.22,149.18,23.776884]
[1726980300265,6.7019,149.21,149.18,23.776884]
[1726980304565,6.7019,149.21,149.17,6.7037]
[1726980304566,6.7036,149.18,149.12,20.0]
[1726980304870,6.7038,149.17,149.12,6.7058]
[1726980305991,6.7038,149.17,149.13,6.7054]
[1726980306284,6.7038,149.17,149.12,6.7059]
[1726980307072,23.1653,149.21,149.13,8.04601874]
[1726980307073,6.7033,149.18,149.13,8.04601874]
[1726980307268,6.7033,149.18,149.14,6.7049]
[1726980307776,6.7033,149.18,149.15,23.776884]
[1726980308670,6.7028,149.19,149.15,8.04532056]
[1726980308869,13.1122,149.21,149.16,23.776884]
[1726980309287,13.1122,149.21,149.16,30.480984]
[1726980310321,13.1122,149.21,149.17,1.34062264]
[1726980311204,6.7024,149.21,149.18,23.776884]
[1726980311594,22.9972,149.22,149.18,23.776884]
[1726980312320,22.9972,149.22,149.18,30.479984]
[1726980313314,22.9972,149.22,149.18,23.776884]
[1726980314903,6.7015,149.22,149.18,30.479984]
[1726980315102,6.7011,149.23,149.2,23.776884]
[1726980315298,6.8051112,149.25,149.21,6.7018]
[1726980315607,0.3249112,149.25,149.22,30.478284]
[1726980316220,0.3249112,149.25,149.22,23.776884]
[1726980317420,0.3249112,149.25,149.22,25.1170485]
[1726980317721,0.3249112,149.25,149.22,31.8184485]
[1726980317924,0.3249112,149.25,149.22,30.478284]
[1726980319825,0.3249112,149.25,149.21,30.478784]
[1726980320030,7.0251112,149.25,149.21,23.776884]
[1726980320408,6.7006,149.24,149.21,23.776884]
[1726980321128,7.0251112,149.25,149.21,30.478784]
[1726980323413,0.3249112,149.25,149.21,30.478684]
[1726980323713,0.3249112,149.25,149.22,8.04158563]
[1726980324829,0.3249112,149.25,149.23,23.776884]
[1726980326619,0.3249112,149.25,149.22,6.7014]
[1726980326620,7.0250112,149.25,149.22,23.776884]
[1726980326837,6.7006,149.24,149.19,6.7024]
[1726980328241,6.7011,149.23,149.16,27.76547568]
[1726980328418,6.7015,149.22,149.18,6.7031]
[1726980330027,6.7015,149.22,149.17,6.7036]
[1726980330242,15.3517112,149.25,149.16,6.704]
[1726980330243,6.702,149.21,149.16,6.704]
[1726980331625,6.702,149.21,149.17,23.776884]
[1726980332345,6.702,149.21,149.17,30.480484]
[1726980334035,6.702,149.21,149.17,23.776884]
[1726980334855,6.702,149.21,149.17,30.480484]
[1726980338758,6.702,149.21,149.17,23.776884]
[1726980340055,23.1805,149.24,149.16,23.776884]
[1726980340556,6.702,149.21,149.18,23.776884]
[1726980341433,6.702,149.21,149.17,23.776884]
[1726980345643,6.7024,149.2,149.17,23.776884]
[1726980352270,6.702,149.21,149.17,23.776884]
[1726980353761,6.702,149.21,149.17,6.7037]
[1726980354066,6.702,149.21,149.18,23.776884]
[1726980364080,6.702,149.21,149.16,6.7041]
[1726980364081,6.702,149.21,149.17,23.776884]
[1726980371382,6.702,149.21,149.17,30.480484]
[1726980372763,6.7016,149.22,149.17,30.480484]
[1726980373089,6.4281,149.24,149.19,23.776884]
[1726980373380,6.4281,149.24,149.2,1.34033108]
[1726980374271,6.7011,149.23,149.2,1.34033108]
[1726980378464,15.3517112,149.25,149.21,23.776884]
[1726980378672,0.3249112,149.25,149.23,23.776884]
[1726980379559,0.3249112,149.25,149.22,23.776884]
[1726980382568,0.3249112,149.25,149.23,1.34006376]
[1726980382776,0.3249112,149.25,149.24,23.776884]
[1726980383584,0.3249112,149.25,149.23,23.776884]
[1726980387478,6.7007,149.24,149.18,12.75437568]
[1726980387783,6.7007,149.24,149.19,6.7027]
[1726980388871,6.7007,149.24,149.2,23.776884]
[1726980393784,7.0251112,149.25,149.2,30.478884]
[1726980393991,7.0251112,149.25,149.22,23.776884]
[1726980403684,7.0251112,149.25,149.21,23.776884]
[1726980404069,6.7016,149.22,149.17,6.7036]
[1726980404274,6.7016,149.22,149.18,20.0]
[1726980404794,6.7016,149.22,149.17,6.7036]
[1726980406587,6.7016,149.22,149.18,23.776884]
[1726980407981,6.7019,149.21,149.18,23.776884]
[1726980408178,6.2442,149.23,149.17,23.776884]
[1726980409301,6.7024,149.2,149.16,23.776884]
[1726980410097,6.2442,149.23,149.17,25.11747501]
[1726980410098,6.702,149.21,149.17,25.11747501]
[1726980410302,6.702,149.21,149.17,31.82117501]
[1726980411305,6.7016,149.22,149.18,1.34056425]
[1726980411485,6.7016,149.22,149.19,23.776884]
[1726980412202,6.7016,149.22,149.18,23.776884]
[1726980412588,6.7024,149.2,149.16,6.704]
[1726980412801,6.7024,149.2,149.16,23.776884]
[1726980413111,6.7036,149.18,149.12,20.0]
[1726980413476,6.7036,149.18,149.13,6.7054]
[1726980416085,6.7036,149.18,149.14,23.776884]
[1726980416390,15.7106,149.19,149.12,20.0]
[1726980416391,6.7039,149.17,149.12,20.0]
[1726980416588,6.7043,149.16,149.12,6.7059]
[1726980417398,6.7038,149.17,149.12,6.7059]
[1726980417594,6.7038,149.17,149.13,23.776884]
[1726980419887,6.7042,149.16,149.13,23.776884]
[1726980420810,6.7038,149.17,149.13,23.776884]
[1726980421190,6.5044,149.18,149.13,23.776884]
[1726980422314,6.7038,149.17,149.13,23.776884]
[1726980423217,6.7038,149.17,149.13,30.482384]
[1726980423614,6.7046,149.15,149.11,26.7064]
[1726980423806,6.7046,149.15,149.09,0.12549]
[1726980423999,6.7046,149.15,149.11,6.7064]
[1726980426200,6.7046,149.15,149.1,6.7068]
[1726980426604,6.7046,149.15,149.11,23.776884]
[1726980427393,6.7046,149.15,149.1,6.7068]
[1726980427394,6.7054,149.14,149.09,6.7072]
[1726980427716,6.7056,149.13,149.09,6.7072]
[1726980431521,6.7056,149.13,149.08,6.9629025]
[1726980431730,6.7056,149.13,149.09,23.776884]
[1726980431927,6.5743,149.14,149.08,0.2552025]
[1726980432231,6.7072,149.1,149.08,0.2552025]
[1726980436501,6.706,149.12,149.08,0.2552025]
[1726980438736,6.7056,149.13,149.08,6.9628025]
[1726980438940,6.5743,149.14,149.09,6.7071]
[1726980439452,13.2797,149.14,149.09,6.7071]
[1726980444948,23.3555,149.15,149.1,23.776884]
[1726980445323,6.7048,149.15,149.1,23.776884]
[1726980445532,6.7048,149.15,149.1,25.11811606]
[1726980445839,6.7048,149.15,149.1,23.776884]
[1726980446258,6.7048,149.15,149.11,6.7063]
[1726980446458,6.7048,149.15,149.1,23.776884]
[1726980447441,6.7048,149.15,149.1,30.483684]
[1726980448453,6.7052,149.14,149.1,6.7068]
[1726980450965,6.7047,149.15,149.1,6.7068]
[1726980451770,6.7051,149.14,149.1,6.7068]
[1726980453444,6.7047,149.15,149.1,6.7068]
[1726980455962,0.25098,149.17,149.08,24.0320865]
[1726980456841,6.7048,149.15,149.11,6.7064]
[1726980458857,6.7048,149.15,149.08,24.0320865]
[1726980460658,6.7051,149.14,149.08,24.0320865]
[1726980462267,6.7051,149.14,149.1,6.7068]
[1726980464671,6.7051,149.14,149.09,6.7072]
[1726980464873,6.7051,149.14,149.1,6.7068]
[1726980467158,6.7051,149.14,149.09,6.7072]
[1726980468553,6.7056,149.13,149.08,30.7396865]
[1726980470369,6.706,149.12,149.08,0.2552025]
[1726980470585,6.7064,149.11,149.08,0.2552025]
[1726980474278,6.7071,149.1,149.08,0.2552025]
[1726980475791,6.7073,149.09,149.08,0.2552025]
[1726980489602,6.707,149.1,149.08,0.2552025]
[1726980490308,6.7073,149.09,149.08,0.2552025]
[1726980522821,23.75666175,149.13,149.03,0.2552025]
[1726980522822,0.25098,149.08,149.03,0.2552025]
[1726980523324,6.7096,149.04,149.03,0.2552025]
[1726980541746,6.7092,149.05,149.03,0.2552025]
[1726980559474,6.7096,149.04,149.03,0.2552025]
[1726980560057,6.83509,149.04,149.03,0.2552025]
[1726980561464,6.96058,149.04,149.03,0.2552025]
[1726980562177,6.7114,149.0,148.99,0.2552025]
[1726980562368,6.96238,149.0,148.99,0.2552025]
[1726980570064,6.7114,149.0,148.99,0.2552025]
[1726980570283,6.711,149.01,148.99,0.2552025]
[1726980572886,23.77904514,149.06,148.99,0.2552025]
[1726980573181,6.7105,149.02,148.99,0.2552025]
[1726980574196,6.7096,149.04,149.0,6.7113]
[1726980575264,6.7096,149.04,148.99,0.2552025]
[1726980577287,6.71,149.03,148.99,0.2552025]
[1726980580293,6.71,149.03,148.99,6.9670025]
[1726980582994,6.711,149.01,148.99,0.2552025]
[1726980584081,6.7106,149.02,148.99,0.2552025]
[1726980594791,0.25098,149.06,148.99,0.2552025]
[1726980594792,6.711,149.01,148.99,0.2552025]
[1726980595587,6.7114,149.0,148.99,0.2552025]
[1726980599390,6.96238,149.0,148.99,0.2552025]
[1726980603518,6.7136,148.95,148.94,0.3576155]
[1726980604407,6.7132,148.96,148.94,0.3576155]
[1726980608005,6.7128,148.97,148.94,0.3576155]
[1726980608316,0.12549,149.0,148.94,0.3576155]
[1726980608609,6.7122,148.99,148.94,7.0715155]
[1726980611222,6.7123,148.98,148.94,7.0715155]
[1726980611815,6.7118,148.99,148.95,6.7136]
[1726980612123,6.7101,149.03,148.97,16.4848]
[1726980612331,6.7101,149.03,148.98,6.7121]
[1726980613521,6.7105,149.02,148.98,6.7121]
[1726980614332,6.7105,149.02,148.97,23.1974]
[1726980616951,6.7101,149.03,148.99,6.7118]
[1726980617228,0.25098,149.06,148.99,6.7118]
[1726980618008,6.7099,149.04,148.99,6.7118]
[1726980619305,6.71,149.03,148.99,6.7118]
[1726980620829,0.25098,149.06,148.98,23.776884]
[1726980621036,6.71,149.03,148.99,6.7115]
[1726980623928,6.71,149.03,148.98,30.488984]
[1726980625328,6.71,149.03,148.99,6.7118]
[1726980628033,6.71,149.03,148.98,31.83127756]
[1726980632238,6.71,149.03,148.98,30.488984]
[1726980633946,7.23812628,149.06,148.94,0.3576155]
[1726980634146,24.027864,149.04,148.94,7.0716155]
[1726980634437,6.7123,148.98,148.94,0.3576155]
[1726980634626,6.713,148.97,148.94,0.3576155]
[1726980634938,6.7123,148.98,148.94,0.3576155]
[1726980635136,6.7118,148.99,148.94,7.0716155]
[1726980635816,6.7118,148.99,148.95,23.776884]
[1726980636045,26.68253906,149.03,148.95,23.776884]
[1726980636046,0.12549,149.04,148.97,23.776884]
[1726980636242,0.25098,149.05,148.97,23.776884]
[1726980637132,6.7106,149.02,148.97,37.8736278]
[1726980637329,6.7099,149.04,148.99,6.7116]
[1726980637537,39.32064628,149.06,148.97,36.53125968]
[1726980638039,6.7105,149.02,148.98,6.7122]
[1726980639440,6.7105,149.02,148.97,30.489484]
[1726980642938,6.711,149.01,148.96,23.776884]
[1726980644250,6.711,149.01,148.97,6.7127]
[1726980644946,6.711,149.01,148.96,30.489984]
[1726980647449,6.7114,149.0,148.96,23.776884]
[1726980648346,6.7119,148.99,148.96,23.776884]
[1726980656852,6.7115,149.0,148.96,23.776884]
[1726980659848,6.7115,149.0,148.96,30.489984]
[1726980660542,6.711,149.01,148.96,30.489984]
[1726980661064,6.711,149.01,148.96,31.83241972]
[1726980661557,6.711,149.01,148.96,30.489984]
[1726980663364,6.7114,149.0,148.96,30.489984]
[1726980664638,6.7121,148.99,148.95,15.4669]
[1726980664842,6.7124,148.98,148.94,7.0713155]
[1726980665042,6.7124,148.98,148.94,0.3576155]
[1726980665571,6.7135,148.96,148.94,0.3576155]
[1726980668057,6.7128,148.97,148.94,0.3576155]
[1726980675670,24.01176101,149.03,148.94,25.47721928]
[1726980675864,23.76078101,149.03,148.94,25.47721928]
[1726980676251,6.7115,149.0,148.95,6.7135]
[1726980676468,16.7755,149.03,148.95,6.7135]
[1726980676469,6.712,148.99,148.95,6.7135]
[1726980683572,6.7115,149.0,148.96,23.776884]
[1726980684268,6.7115,149.0,148.95,23.776884]
[1726980684979,6.7115,149.0,148.96,1.34252012]
[1726980685867,6.7115,149.0,148.95,23.776884]
[1726980686575,6.711,149.01,148.95,23.776884]
[1726980686773,6.7106,149.02,148.97,23.776884]
[1726980689879,6.7115,149.0,148.96,15.147]
[1726980690093,0.25098,149.04,148.97,1.34251823]
[1726980690094,9.90663906,149.02,148.97,1.34251823]
[1726980690261,0.25098,149.05,148.96,15.147]
[1726980691092,6.7106,149.02,148.96,15.147]
[1726980691587,6.7106,149.02,148.97,23.776884]
[1726980692489,0.25098,149.05,148.97,23.776884]
[1726980692671,6.71,149.03,148.97,23.776884]
[1726980692988,6.7105,149.02,148.97,23.776884]
[1726980726531,6.97833909,149.06,148.97,23.776884]
[1726980726695,9.90663906,149.07,148.99,23.776884]
[1726980727018,6.7088,149.06,148.99,23.776884]
[1726980727894,6.7092,149.05,148.99,23.776884]
[1726980728915,6.71,149.03,148.98,6.4335]
[1726980732213,6.711,149.01,148.96,15.147]
[1726980732409,9.90663906,149.04,148.96,15.147]
[1726980732410,9.90663906,149.03,148.96,15.147]
[1726980732603,6.7115,149.0,148.96,15.147]
[1726980736193,6.711,149.01,148.96,15.147]
[1726980736810,6.7115,149.0,148.96,15.147]
[1726980740711,6.711,149.01,148.96,15.147]
[1726980745010,6.7106,149.02,148.97,1.34246039]
[1726980745420,6.7106,149.02,148.97,23.776884]
[1726980755634,6.7101,149.03,148.97,23.776884]
[1726980755933,6.7101,149.03,148.98,1.34230059]
[1726980756435,6.7097,149.04,148.98,1.34230059]
[1726980756625,6.7097,149.04,148.99,23.776884]
[1726980757627,6.7102,149.03,148.99,23.776884]
[1726980758948,6.7109,149.01,148.96,15.147]
[1726980759235,6.7114,149.0,148.96,15.147]
[1726980759618,6.711,149.01,148.96,15.147]
[1726980777241,6.7105,149.02,148.96,15.147]
[1726980777460,16.89652311,149.06,148.99,23.776884]
[1726980777663,13.69858405,149.06,148.99,31.36263351]
[1726980777849,6.7092,149.05,148.99,31.36263351]
[1726980778053,6.7092,149.05,148.99,30.020484]
[1726980780563,6.7096,149.04,148.99,30.020484]
[1726980782648,6.7101,149.03,148.99,30.020484]
[1726980782843,6.7105,149.02,148.99,6.2436]
[1726980783072,6.711,149.01,148.96,15.147]
[1726980784546,9.89207715,149.05,148.96,15.147]
[1726980784879,6.7119,148.99,148.96,15.147]
[1726980787349,6.7114,149.0,148.96,15.147]
[1726980791173,0.25098,149.02,148.96,15.147]
[1726980791483,6.7121,148.99,148.96,15.147]
[1726980795269,6.7126,148.98,148.94,0.3576155]
[1726980799269,6.7132,148.96,148.94,0.3576155]
[1726980813063,6.7136,148.95,148.94,0.3576155]
[1726980814289,6.96508,148.94,148.93,0.0697087]
[1726980814595,6.96508,148.94,148.85,0.3576155]
[1726980814596,6.7154,148.91,148.85,0.3576155]
[1726980816298,6.7154,148.91,148.85,7.0755155]
[1726980817496,6.96638,148.91,148.85,0.3576155]
[1726980823225,0.25098,148.9,148.85,0.3576155]
[1726980823510,6.7177,148.86,148.85,0.3576155]
[1726980825913,6.96868,148.86,148.85,0.3576155]
[1726980826203,6.7177,148.86,148.85,0.3576155]
[1726980827609,6.7173,148.87,148.85,0.3576155]
[1726980827911,6.7169,148.88,148.85,0.3576155]
[1726980828107,22.59037005,148.91,148.85,0.3576155]
[1726980828517,6.7173,148.87,148.85,0.3576155]
[1726980831518,6.7164,148.89,148.85,0.3576155]
[1726980831824,6.7169,148.88,148.85,0.3576155]
[1726980832192,6.7173,148.87,148.85,0.3576155]
[1726980839005,6.7168,148.88,148.85,0.3576155]
[1726980847727,6.7164,148.89,148.85,0.3576155]
[1726980848833,6.7169,148.88,148.85,0.3576155]
[1726980849439,16.60897715,148.88,148.85,0.3576155]
[1726980849926,6.7173,148.87,148.85,0.3576155]
[1726980856158,6.7169,148.88,148.85,0.3576155]
[1726980859439,6.7174,148.87,148.85,0.3576155]
[1726980860039,6.7177,148.86,148.85,0.3576155]
[1726980864352,6.7177,148.86,148.84,0.0697087]
[1726980864353,6.96908,148.85,148.84,0.0697087]
[1726980869336,6.7195,148.82,148.81,0.2552025]
[1726980869580,6.97048,148.82,148.81,0.2552025]
[1726980869761,6.7191,148.83,148.81,0.2552025]
[1726980870056,10.01756715,148.85,148.81,0.2552025]
[1726980870057,6.7187,148.84,148.81,0.2552025]
[1726980875545,6.97008,148.83,148.81,0.2552025]
[1726980875847,6.84459,148.83,148.81,0.2552025]
[1726980877371,6.7191,148.83,148.81,0.2552025]
[1726980883858,6.84419,148.84,148.81,0.2552025]
[1726980884074,10.01756715,148.85,148.81,0.2552025]
[1726980884589,16.61027715,148.85,148.81,6.9751025]
[1726980884949,16.61027715,148.85,148.81,0.2552025]
[1726980885468,6.7186,148.84,148.81,0.2552025]
[1726980901373,16.61107715,148.83,148.81,0.2552025]
[1726980905294,6.719,148.83,148.81,0.2552025]
[1726980908094,6.7186,148.84,148.81,0.2552025]
[1726980918821,6.7186,148.84,148.81,0.2552025]
[1726980922709,16.60977715,148.86,148.81,0.2552025]
[1726980922907,6.7177,148.86,148.81,0.2552025]
[1726980924420,6.7173,148.87,148.81,0.2552025]
[1726980924636,6.7168,148.88,148.82,15.9621]
[1726980926136,15.62154375,148.88,148.82,15.9621]
[1726980926346,0.25098,148.87,148.82,15.9621]
[1726980926520,9.15572375,148.87,148.81,0.2552025]
[1726980927141,6.7183,148.85,148.81,0.2552025]
[1726980931245,6.7187,148.84,148.81,0.2552025]
[1726980944556,9.15572375,148.87,148.81,0.2552025]
[1726980944761,6.7183,148.85,148.81,0.2552025]
[1726980950366,0.25098,148.87,148.81,0.2552025]
[1726980950674,6.7191,148.83,148.81,0.2552025]
[1726980954978,0.12549,148.84,148.81,0.2552025]
[1726980955186,6.7195,148.82,148.81,0.2552025]
[1726980958863,6.97048,148.82,148.81,0.2552025]
[1726980962364,6.7195,148.82,148.81,0.2552025]
[1726980964282,6.7192,148.83,148.81,0.2552025]
[1726980964477,6.97048,148.82,148.81,0.2552025]
[1726980966069,0.25098,148.82,148.76,0.3576155]
[1726980966269,6.7217,148.77,148.76,0.3576155]
[1726980966470,6.7214,148.78,148.76,0.3576155]
[1726980966898,6.7217,148.77,148.76,0.3576155]
[1726980967369,0.25098,148.76,148.75,0.0697087]
[1726980967570,0.25098,148.79,148.75,0.0697087]
[1726980968393,6.97178,148.8,148.75,0.0697087]
[1726980968569,0.25098,148.8,148.75,0.0697087]
[1726980970299,6.7209,148.79,148.75,0.0697087]
[1726980971007,6.7213,148.78,148.75,0.0697087]
[1726980972913,6.7218,148.77,148.75,0.0697087]
[1726980974790,6.7209,148.79,148.75,0.0697087]
[1726980977296,6.7214,148.78,148.75,0.0697087]
[1726980984900,6.7219,148.77,148.75,0.0697087]
[1726980988416,6.7213,148.78,148.75,0.0697087]
[1726980993208,6.721,148.79,148.75,0.0697087]
[1726980999615,13.44193491,148.82,148.75,0.0697087]
[1726980999795,6.7195,148.82,148.75,1.41406351]
[1726980999998,6.7195,148.82,148.75,0.0697087]
[1726981000394,6.72,148.81,148.75,0.0697087]
[1726981004213,6.72,148.81,148.74,23.3465927]
[1726981014833,6.84599,148.8,148.74,23.3465927]
[1726981015035,6.721,148.79,148.73,6.063]
[1726981015323,0.12549,148.79,148.72,15.8389025]
[1726981015531,0.12549,148.8,148.72,0.2552025]
[1726981016303,6.7218,148.77,148.72,0.2552025]
[1726981017043,6.7214,148.78,148.72,0.2552025]
[1726981017899,6.7209,148.79,148.72,24.0320865]
[1726981018128,6.7209,148.79,148.73,1.34447498]
[1726981019816,89.5032,148.85,148.74,23.776884]
[1726981020007,6.7203,148.81,148.74,23.776884]
[1726981020835,6.7206,148.8,148.74,23.776884]
[1726981021013,6.7209,148.79,148.74,23.776884]
[1726981021213,6.7209,148.79,148.73,15.8048]
[1726981029131,6.7214,148.78,148.73,15.8048]
[1726981030441,0.12549,148.8,148.72,6.8726025]
[1726981030442,6.7219,148.77,148.72,0.2552025]
[1726981033433,0.12549,148.79,148.72,0.2552025]
[1726981033636,16.40579,148.8,148.73,23.776884]
[1726981033941,16.40579,148.8,148.74,1.34447049]
[1726981034820,16.40579,148.8,148.73,23.776884]
[1726981035441,6.721,148.79,148.73,23.776884]
[1726981037440,6.721,148.79,148.73,25.12137549]
[1726981037827,6.721,148.79,148.73,23.776884]
[1726981038145,6.721,148.79,148.72,24.0320865]
[1726981053267,6.722,148.77,148.72,0.2552025]
[1726981061263,6.7213,148.78,148.72,13.00957818]
[1726981061473,6.721,148.79,148.73,14.09894638]
[1726981062174,23.12619,148.8,148.73,14.09894638]
[1726981062376,6.7209,148.79,148.73,14.09894638]
[1726981062580,6.7209,148.79,148.73,12.75437568]
[1726981063980,6.7209,148.79,148.74,1.34449661]
[1726981064984,6.7209,148.79,148.74,23.776884]
[1726981066686,6.7209,148.79,148.73,23.776884]
[1726981072381,6.7213,148.78,148.73,23.776884]
[1726981072582,6.7213,148.78,148.72,24.0320865]
[1726981075381,73.902374,148.79,148.72,0.2552025]
[1726981075680,0.25098,148.74,148.72,0.2552025]
[1726981076300,6.97448,148.73,148.72,0.2552025]
[1726981076696,15.2824,148.75,148.72,0.2552025]
[1726981076997,6.7218,148.77,148.72,0.2552025]
[1726981077200,6.7215,148.78,148.72,13.00957818]
[1726981077379,6.7218,148.77,148.72,13.00957818]
[1726981077582,6.7218,148.77,148.73,23.776884]
[1726981077895,6.7218,148.77,148.72,0.2552025]
[1726981081077,6.7222,148.76,148.72,0.2552025]
[1726981083885,6.7228,148.75,148.72,0.2552025]
[1726981084093,0.25098,148.78,148.72,0.2552025]
[1726981084295,6.7232,148.74,148.72,0.2552025]
[1726981085213,6.7227,148.75,148.72,0.2552025]
[1726981087810,0.25098,148.78,148.72,0.2552025]
[1726981089315,6.7218,148.77,148.72,0.2552025]
[1726981090191,6.7214,148.78,148.72,0.2552025]
[1726981090417,6.721,148.79,148.73,23.776884]
[1726981092724,6.7214,148.78,148.73,23.776884]
[1726981093615,6.7214,148.78,148.72,24.0320865]
[1726981093920,6.7209,148.79,148.73,23.776884]
[1726981094125,0.12549,148.82,148.75,23.776884]
[1726981094334,8.95453554,148.82,148.75,23.776884]
[1726981094630,6.7212,148.79,148.73,23.776884]
[1726981095601,6.7212,148.79,148.72,24.0320865]
[1726981096128,6.7214,148.78,148.72,24.0320865]
[1726981098105,6.7214,148.78,148.73,1.34455074]
[1726981098608,6.7214,148.78,148.72,24.0320865]
[1726981098813,6.7214,148.78,148.72,25.37663591]
[1726981099039,6.7209,148.79,148.72,25.37663591]
[1726981099208,6.7209,148.79,148.72,24.0320865]
[1726981099408,6.7216,148.78,148.72,24.0320865]
[1726981100035,6.7218,148.77,148.72,24.0320865]
[1726981102945,6.7229,148.75,148.72,0.2552025]
[1726981104234,6.7222,148.76,148.72,0.2552025]
[1726981107354,6.7228,148.75,148.72,0.2552025]
[1726981109829,6.7223,148.76,148.72,0.2552025]
[1726981110533,6.7216,148.78,148.72,0.2552025]
[1726981111150,6.7223,148.76,148.72,0.2552025]
[1726981113859,6.97398,148.75,148.72,0.2552025]
[1726981114061,6.723,148.75,148.72,0.2552025]
[1726981114368,6.84769,148.77,148.72,0.2552025]
[1726981114865,6.7224,148.76,148.72,0.2552025]
[1726981132436,6.7214,148.78,148.72,0.2552025]
[1726981132568,6.7214,148.78,148.73,23.776884]
[1726981134662,6.7209,148.79,148.74,1.34453304]
[1726981134867,6.7209,148.79,148.73,23.776884]
[1726981144409,6.7215,148.78,148.73,23.776884]
[1726981144805,6.7218,148.77,148.72,6.7131025]
[1726981146718,6.7223,148.76,148.72,6.7131025]
[1726981147525,6.7218,148.77,148.72,6.7131025]
[1726981152248,0.25098,148.79,148.72,6.7131025]
[1726981152922,0.25098,148.79,148.72,0.2552025]
[1726981153128,6.7223,148.76,148.72,0.2552025]
[1726981159335,6.7227,148.75,148.72,0.2552025]
[1726981160366,6.7223,148.76,148.72,0.2552025]
[1726981163862,6.7219,148.77,148.72,24.0320865]
[1726981164338,6.7213,148.78,148.72,24.0320865]
[1726981164537,6.7213,148.78,148.72,30.3125865]
[1726981164739,0.25098,148.8,148.72,6.5357025]
[1726981164950,0.25098,148.8,148.72,0.2552025]
[1726981165260,6.7223,148.76,148.72,0.2552025]
[1726981165465,6.723,148.75,148.72,0.2552025]
[1726981168131,6.7233,148.74,148.72,0.2552025]
[1726981168849,6.97448,148.73,148.72,0.2552025]
[1726981200596,6.99949399,148.75,148.72,0.2552025]
[1726981200899,50.0,148.77,148.72,0.2552025]
[1726981201205,56.99239935,148.77,148.72,0.2552025]
[1726981201791,6.97448,148.73,148.72,0.2552025]
[1726981210812,6.7235,148.73,148.72,0.2552025]
[1726981214183,6.97448,148.73,148.72,0.2552025]
[1726981218499,23.79729935,148.77,148.72,0.2552025]
[1726981218701,6.99239935,148.77,148.72,0.2552025]
[1726981218911,50.0,148.79,148.72,0.2552025]
[1726981220292,6.7227,148.75,148.72,0.2552025]
[1726981223399,6.7223,148.76,148.72,0.2552025]
[1726981224115,6.7217,148.78,148.72,24.0320865]
[1726981236110,107.3756051,148.83,148.75,23.776884]
[1726981236111,6.7202,148.81,148.75,23.776884]
[1726981241619,6.7205,148.8,148.75,23.776884]
[1726981245913,6.7209,148.79,148.74,16.3129]
[1726981246116,6.7214,148.78,148.74,16.3129]
[1726981248507,6.7209,148.79,148.74,16.3129]
[1726981248899,40.07385954,148.84,148.74,16.3129]
[1726981248900,6.7205,148.8,148.74,16.3129]
[1726981249301,6.7201,148.81,148.75,23.776884]
[1726981253822,6.7204,148.8,148.75,23.776884]
[1726981254122,6.7204,148.8,148.74,16.3129]
[1726981254318,6.721,148.79,148.74,16.3129]
[1726981257732,0.12549,148.82,148.74,16.3129]
[1726981257919,0.25098,148.79,148.74,16.3129]
[1726981258320,6.7218,148.77,148.74,16.3129]
[1726981265029,6.97358,148.76,148.72,0.2552025]
[1726981265232,0.25098,148.79,148.72,0.2552025]
[1726981265440,6.723,148.75,148.72,0.2552025]
[1726981268240,6.7223,148.76,148.72,0.2552025]
[1726981268828,16.8015,148.8,148.72,0.2552025]
[1726981269030,76.6696,148.82,148.72,0.2552025]
[1726981269621,6.7214,148.78,148.72,0.2552025]